Cogmind - Beta 10.1 @@@ ROGUE MODE // 2020.09.28 @ 20:10:25 Player: MJWkr Result: Destroyed by S-27 Virus with Autogun Performance ------------- Evolutions (6) 3000 Regions Visited (14) 2800 Robots Destroyed (130) 650 Value Destroyed (5521) 5521 Prototype IDs (28) 560 Alien Tech Used (0) 0 Bonus (2283) 2283 TOTAL SCORE: 14814 Bonus ------- High Alert Combat Kills 1129 Follower Combat Kills 167 Entered Garrisons 200 Used RIF Installer 500 Aligned with FarCom 300 Friendly Fire -13 Cogmind --------- Core Integrity 0/1150 Matter 171/300 Energy 99/100 System Corruption 1% Temperature Cool (0) Movement Core (50) Location -4/Factory Parts ------- > --- POWER (2) -------- (None) > --- PROPULSION (4) --- (None) > --- UTILITY (9) ------ (None) > --- WEAPON (4) ------- (None) > --- INVENTORY (4) ---- System Restoration Module Peak State ------------ > --- POWER ------------ Light Deuterium Engine Fission Core > --- PROPULSION ------- Light Treads Medium Treads Improved Medium Treads Improved Medium Treads > --- UTILITY ---------- Power Amplifier Advanced Heat Sink Lightpack 2.0 Energy Well Advanced Terrain Scanner Matter Filter > --- WEAPON ----------- Improved Arc Projector Heavy Laser Mini Assault Cannon Long-range Missile Launcher > --- INVENTORY -------- Light Nuclear Core Light Nuclear Core Cold Fusion Reactor Improved Airjet Flight Unit Improved Flight Unit Improved Flight Unit Cesium-ion Thruster Xenon Bombardment Thruster Coolant Injector Advanced Signal Interpreter Advanced Terrain Scanner Hardlight Generator Relay Coupler [Grunt] Disruptor Cannon Minigun Magnetic Acceleration Cannon Magnetic Acceleration Cannon Mass Driver Long-range Missile Launcher Smartbomb Launcher Datajack Remote Datajack [Rating: 94] Favorites ----------- Power Improved Ion Engine Engine Improved Ion Engine Power Core Fission Core Reactor Cold Fusion Reactor Propulsion Light Treads Treads Light Treads Leg Flexi-carbon Leg Wheel Armored Huge Wheel Hover Unit Improved Airjet Flight Unit Improved Flight Unit Utility Lightpack 2.0 Device Advanced Terrain Scanner Storage Lightpack 2.0 Hackware Advanced Hacking Suite Protection Hardened Medium Armor Plating Weapon Shock Bomb Launcher Energy Gun Lightning Gun Energy Cannon EM Pulse Cannon Ballistic Gun AWS/Gauss Ballistic Cannon Mini Assault Cannon Launcher Shock Bomb Launcher Special Weapon Remote Datajack Slashing Weapon Katana Piercing Weapon Heavy Pick Build | -11 -10 -9 -9 -9 -8 -8 -7 -6 -6 -6 -5 -5 -5 -4 ------- Run | Scr Mat Mat Min Exi Min Mat Fac Fac Gar Fac Fac Was Fac Fac Slots Evolved 12 | . . 2 . . . 2 2 2 . . 2 . . 2 Power 1 | . . . . . . . . . . . 1 . . . Propulsion 2 | . . . . . . 2 . . . . . . . . Utility 7 | . . . . . . . 2 2 . . 1 . . 2 Weapon 2 | . . 2 . . . . . . . . . . . . Parts Attached 117 | 6 3 6 3 3 1 7 4 5 9 29 10 . 16 15 Power 11 | 1 . 2 . 1 . . . . . 2 1 . 3 1 Engine 6 | 1 . 2 . 1 . . . . . . 1 . 1 . Core 4 | . . . . . . . . . . 1 . . 2 1 Reactor 1 | . . . . . . . . . . 1 . . . . Propulsion 41 | 2 . 1 1 . 1 6 2 2 3 10 4 . 6 3 Treads 21 | 2 . . . . . 2 . 2 3 9 . . 1 2 Leg 1 | . . . . . . . . . . 1 . . . . Wheel 1 | . . . . . . . 1 . . . . . . . Hover 1 | . . . . . . . 1 . . . . . . . Flight 17 | . . 1 1 . 1 4 . . . . 4 . 5 1 Utility 23 | 1 1 1 . 1 . . 2 2 2 3 2 . 3 5 Device 15 | . 1 . . . . . 2 2 . 3 2 . 2 3 Storage 4 | 1 . 1 . 1 . . . . 1 . . . . . Processor . | . . . . . . . . . . . . . . . Hackware 2 | . . . . . . . . . . . . . 1 1 Protection 2 | . . . . . . . . . 1 . . . . 1 Artifact . | . . . . . . . . . . . . . . . Weapon 42 | 2 2 2 2 1 . 1 . 1 4 14 3 . 4 6 Energy Gun 11 | 1 2 . . . . 1 . . 1 4 1 . . 1 Energy Cannon 1 | . . . . . . . . . . 1 . . . . Ballistic Gun 6 | 1 . . . 1 . . . . 1 2 . . . 1 Ballistic Cannon 6 | . . . . . . . . . . 4 1 . . 1 Launcher 9 | . . . 2 . . . . 1 2 2 1 . . 1 Special Weapon 3 | . . 2 . . . . . . . 1 . . . . Impact Weapon . | . . . . . . . . . . . . . . . Slashing Weapon 5 | . . . . . . . . . . . . . 3 2 Piercing Weapon 1 | . . . . . . . . . . . . . 1 . Special Melee Weapon . | . . . . . . . . . . . . . . . Unidentified Prototypes 7 | . . 1 . 2 . . 1 . . 3 . . . . Parts Lost 66 | . . 7 1 . 1 . . 1 3 17 15 . 9 12 Power 6 | . . 1 . . . . . . . . 2 . 1 2 Propulsion 21 | . . 2 . . 1 . . . 1 5 4 . 5 3 Utility 13 | . . . . . . . . . 1 4 4 . 1 3 Weapon 26 | . . 4 1 . . . . 1 1 8 5 . 2 4 Highest Loss Streak 8 | . . 7 1 . 1 . . 1 1 3 7 . 8 8 Average Slot Usage (%) 75 | . 85 65 55 61 65 72 74 83 86 87 82 17 35 37 Engine 4 | . 14 8 11 10 11 9 7 6 6 . 4 . . . Reactor 1 | . . . . . . . . . . 4 . . . . Treads 15 | . 28 15 . . . 6 15 19 25 20 18 . . 7 Flight 4 | . . 2 21 22 21 21 . . . . . 11 12 1 Device 11 | . 4 11 11 4 . . 15 25 18 14 19 . 1 6 Storage 9 | . 14 8 . 6 11 9 7 6 11 13 10 5 5 3 Protection 1 | . . . . . . . . . . 3 . . . 1 Energy Gun 5 | . 14 15 . . . 8 7 5 3 5 9 . . 1 Ballistic Gun 4 | . 9 . . 6 11 9 7 6 9 2 . . . . Ballistic Cannon 3 | . . . . . . . . . . 8 5 . . . Launcher 6 | . . . 11 11 11 9 7 6 9 5 4 . . 1 Naked Turns 105 | . . . . . . . . . . . . . . 105 Heaviest Build 55 | 11 12 18 16 26 26 27 29 38 46 55 52 5 21 42 Greatest Support 125 | 40 40 40 10 10 10 42 42 82 82 108 108 13 31 125 Greatest Overweight (x) 12 | . . 2 2 2 4 1 . . . 1 12 . 3 . Average Overweight (x) . | . . . 1 1 2 . . . . . . . . . Largest Inventory Capacity 24 | 6 6 8 4 24 24 24 24 24 24 24 24 4 4 4 Average Capacity 19 | 5 6 6 4 16 24 24 24 24 24 24 23 4 4 4 Most Carried 24 | 1 4 5 4 5 7 24 24 24 24 24 24 4 4 4 Average Carried 16 | . 2 4 3 4 5 15 23 23 23 22 22 4 3 2 Final Capacity 24 | 6 6 4 4 24 24 24 24 24 24 24 4 4 4 4 Final Carried 24 | 1 3 4 4 5 7 24 24 24 24 24 4 4 4 1 Class Distribution -------------------- 48% | Hauler-Skirmisher 23% | Mutant 12% | Hauler-Mutant 9% | Scavenger-Skirmisher 3% | Hauler-Gunner Dominant Class ---------------- Mutant | -10/Materials Mutant | -9/Materials Mutant | -9/Mines Hauler-Gunner | -9/Exiles Hauler-Skirmisher | -8/Mines Hauler-Skirmisher | -8/Materials Hauler-Skirmisher | -7/Factory Hauler-Skirmisher | -6/Factory Hauler-Skirmisher | -6/Garrison Hauler-Skirmisher | -6/Factory Scavenger-Skirmisher | -5/Factory Mutant | -5/Waste Mutant | -5/Factory Mutant | -4/Factory Resources | -11 -10 -9 -9 -9 -8 -8 -7 -6 -6 -6 -5 -5 -5 -4 ----------- Run | Scr Mat Mat Min Exi Min Mat Fac Fac Gar Fac Fac Was Fac Fac Matter Collected 2837 | 225 89 65 44 . 89 32 70 185 220 1248 117 . 336 117 Remotely . | . . . . . . . . . . . . . . . Salvage Created 5053 | 73 62 149 18 . 104 58 255 592 916 1847 147 . 373 459 Parts 275 | 2 4 7 4 . 5 5 21 30 55 102 14 . 15 11 Haulers Intercepted 1 | . . . . . . . . . . 1 . . . . Recyclers Shooed 2 | . . . . . . . . . . . . . 1 1 Parts Field Recycled . | . . . . . . . . . . . . . . . Retrieved Matter . | . . . . . . . . . . . . . . . Parts Self-Destructed . | . . . . . . . . . . . . . . . Prevented . | . . . . . . . . . . . . . . . Kills | -11 -10 -9 -9 -9 -8 -8 -7 -6 -6 -6 -5 -5 -5 -4 ------- Run | Scr Mat Mat Min Exi Min Mat Fac Fac Gar Fac Fac Was Fac Fac Combat Hostiles Destroyed 93 | . 2 3 5 . 3 . 3 10 21 34 3 . 6 3 Melee 8 | . . . . . . . . . . 1 . . 6 1 Guns 33 | . 2 . . . 1 . 2 8 15 5 . . . . Cannons 18 | . . 2 . . . . . . . 15 1 . . . AOE 28 | . . 1 5 . 2 . 1 2 4 9 2 . . 2 Classes Destroyed 15 | 1 2 . . . . 1 2 4 . 4 1 . . . Worker 13 | . . . . . . . 1 1 . 3 6 . 1 1 Builder 7 | . . . . . . . . 1 . 5 1 . . . Tunneler 1 | . . . . . . . . . . 1 . . . . Hauler 1 | . . . . . . . . . . 1 . . . . Recycler 6 | 1 . . . . 1 . 1 . . . . . 1 2 Operator 2 | . . . . . . . . 1 . 1 . . . . Watcher 7 | . . . . . . 2 2 2 . . 1 . . . Swarmer 30 | . 1 . 5 . 3 . . . 11 5 . . 5 . Saboteur 1 | . . . . . . . . . . 1 . . . . Grunt 28 | . 1 3 . . . . 1 5 5 12 1 . . . Brawler 2 | . . . . . . . . . . 2 . . . . Sentry 11 | . . . . . . . . 2 5 2 . . 1 1 Hunter 13 | . . . . . . . . 2 . 8 1 . . 2 Programmer 7 | . . . . . . . 2 1 . 4 . . . . Behemoth 1 | . . . . . . . . . . . 1 . . . Best Kill Streak 11 | 1 1 2 3 . 4 2 4 11 10 9 4 . 4 2 Combat Bots Only 10 | . 1 2 3 . 3 . 1 8 10 5 1 . 3 2 Max Kills in Single Turn 3 | 1 1 1 3 . 2 1 3 1 3 3 3 . 1 2 Gunslinging . | . . . . . . . . . . . . . . . Exploded 3 | . . 1 3 . 2 . 1 1 2 2 1 . . 2 Melee 1 | . . . . . . . . . . 1 . . 1 1 Uniques/NPCs Destroyed . | . . . . . . . . . . . . . . . Combat | -11 -10 -9 -9 -9 -8 -8 -7 -6 -6 -6 -5 -5 -5 -4 -------- Run | Scr Mat Mat Min Exi Min Mat Fac Fac Gar Fac Fac Was Fac Fac Damage Taken 10660 | . 348 550 185 . 52 . 188 350 1093 2433 1515 . 1154 2792 Core 2736 | . 45 157 83 . 26 . 14 . 135 172 241 . 711 1152 Absorbed by Shields . | . . . . . . . . . . . . . . . Core Remaining (%) 68 | 100 82 . . . 33 100 98 . . 63 . . 4 . Volleys Fired 204 | 2 16 8 2 . 2 . 1 19 31 91 20 . . 12 Largest 4 | 2 2 4 2 . 1 . 2 2 4 4 4 . . 2 Hottest 240 | 70 70 130 66 . 33 . 73 73 152 222 240 . . 87 Shots Fired 647 | 4 32 20 3 . 6 13 19 69 104 291 66 . . 20 Gun 360 | 4 32 14 . . 4 13 18 57 85 93 31 . . 9 Cannon 164 | . . . . . . . . . . 134 22 . . 8 Launcher 113 | . . . 3 . 2 . 1 12 19 60 13 . . 3 Special 10 | . . 6 . . . . . . . 4 . . . . Kinetic 343 | 2 16 . . . 4 13 17 42 71 140 22 . . 16 Thermal 121 | 2 16 12 . . . . 1 15 . 54 20 . . 1 Explosive 33 | . . . 3 . 2 . 1 9 . 2 13 . . 3 Electromagnetic 146 | . . 8 . . . . . 3 33 91 11 . . . Robot Hit Streak 14 | 3 7 13 . . 3 5 11 14 10 11 8 . . 5 Robot Miss Streak 5 | . 2 1 1 . 2 2 2 2 5 3 5 . . 5 Penetration Max 1 | . . . . . . . . . . . . . . 1 Secondary Targets . | . . . . . . . . . . . . . . . Autonomous 117 | . . . . . 4 13 17 42 41 . . . . . Shots Hit Robots 397 | 3 19 17 . . 4 8 15 53 52 157 29 . 18 22 Core Hits 262 | 2 4 7 5 . 7 2 7 38 42 96 24 . 11 17 Critical Hits 9 | . . . . . . . . . . 2 1 . 2 4 Critical Kills 2 | . . . . . . . . . . . . . 1 1 Critical Parts Destroyed 7 | . . . . . . . . . . 2 1 . 1 3 Melee Attacks 44 | . . . . . . . . . . . . . 27 17 Impact . | . . . . . . . . . . . . . . . Slashing 26 | . . . . . . . . . . . . . 17 9 Piercing 18 | . . . . . . . . . . . . . 10 8 Sneak Attacks 3 | . . . . . . . . . . . . . 2 1 Combat Hostiles . | . . . . . . . . . . . . . . . Follow-up Attacks 6 | . . . . . . . . . . . . . 4 2 Damage Inflicted 16550 | 35 181 267 279 . 220 293 797 2287 2218 5152 3006 . 788 1027 Guns 5098 | 35 181 157 . . 28 293 443 1271 1393 823 354 . . 120 Cannons 2506 | . . . . . . . . . . 1938 482 . . 86 Explosions 7648 | . . 50 279 . 192 . 354 1016 825 2389 2170 . . 373 Melee 1236 | . . . . . . . . . . . . . 788 448 Ramming 2 | . . . . . . . . . . 2 . . . . Kinetic 5806 | 10 94 . . . 28 293 428 1101 1232 1932 482 . . 206 Thermal 3439 | 25 87 172 82 . . . 333 170 215 1346 1009 . . . Explosive 3126 | . . . 197 . 192 . 36 891 . . 1437 . . 373 Electromagnetic 2941 | . . 95 . . . . . 125 771 1872 78 . . . Impact . | . . . . . . . . . . . . . . . Slashing 498 | . . . . . . . . . . . . . 362 136 Piercing 738 | . . . . . . . . . . . . . 426 312 Highest Corruption 5 | . . . . . . . . . . 5 1 1 1 1 Average Corruption 2 | . . . . . . . . . . 2 1 1 1 1 Corruption Purged 1 | . . . . . . . . . . . . . 1 . Effects 33 | . . . . . . . . . . 32 . 1 . . Message Errors 7 | . . . . . . . . . . 7 . . . . Matter Fused 6 | . . . . . . . . . . 6 . . . . Heat Flow Errors 4 | . . . . . . . . . . 4 . . . . Energy Discharges 1 | . . . . . . . . . . 1 . . . . Data Loss (minor) 5 | . . . . . . . . . . 4 . 1 . . Targeting Errors 6 | . . . . . . . . . . 6 . . . . Weapon Failures 4 | . . . . . . . . . . 4 . . . . Overload Shots . | . . . . . . . . . . . . . . . Overflow Damage 739 | . . . 6 . . . 83 35 66 75 304 . 114 56 Projectiles 56 | . . . . . . . . . . 56 . . . . Explosions 513 | . . . 6 . . . 83 35 66 19 304 . . . Melee 170 | . . . . . . . . . . . . . 114 56 Knockbacks 14 | . . . . . . . . . . 13 1 . . . Impact . | . . . . . . . . . . . . . . . Kinetic 14 | . . . . . . . . . . 13 1 . . . Secondary . | . . . . . . . . . . . . . . . Self-Inflicted Damage 503 | . . 32 104 . 26 . 159 21 31 67 17 . . 46 Shots 19 | . . 1 3 . 1 . 2 1 3 4 2 . . 2 Rammed 1 | . . . . . . . . . . 1 . . . . Targets Rammed 1 | . . . . . . . . . . 1 . . . . Kicked . | . . . . . . . . . . . . . . . Crushed . | . . . . . . . . . . . . . . . Highest Temperature 586 | 18 195 126 27 . . . 20 53 284 398 586 . . . Average Temperature 102 | 10 107 44 21 . . . 20 32 64 92 219 . . . Received Heat Transfer 1503 | . 108 273 6 . . . . 126 318 312 234 . 27 99 Effects 10 | . . . . . . . . . . 1 9 . . . Shutdowns 2 | . . . . . . . . . . . 2 . . . Energy Bleed 1 | . . . . . . . . . . 1 . . . . Interference 2 | . . . . . . . . . . . 2 . . . Matter Decay 1 | . . . . . . . . . . . 1 . . . Short Circuit 4 | . . . . . . . . . . . 4 . . . Siege Activations . | . . . . . . . . . . . . . . . Robots Corrupted 6 | . . . . . . . . . 2 4 . . . . Combat Hostiles 6 | . . . . . . . . . 2 4 . . . . Parts Fried 16 | . . . . . . . . . 2 14 . . . . Impact Corruptions . | . . . . . . . . . . . . . . . Robots Melted . | . . . . . . . . . . . . . . . Combat Hostiles . | . . . . . . . . . . . . . . . Parts Melted 1 | . . . . . . . . . . 1 . . . . Heat Transferred 4514 | 74 259 470 100 . . . 225 375 200 1754 1057 . . . Parts Sabotaged 4 | . . . . . . . . . . 4 . . . . Parts Stolen . | . . . . . . . . . . . . . . . Parts Stripped . | . . . . . . . . . . . . . . . Power Chain Reactions 17 | . . 1 . . . . . . 5 11 . . . . Missiles Intercepted . | . . . . . . . . . . . . . . . Alert | -11 -10 -9 -9 -9 -8 -8 -7 -6 -6 -6 -5 -5 -5 -4 ------- Run | Scr Mat Mat Min Exi Min Mat Fac Fac Gar Fac Fac Was Fac Fac Peak Influence 1009 | 5 77 207 294 . 99 82 534 692 927 1009 768 276 328 388 Initial 494 | . 3 32 80 . . . 37 261 354 486 494 261 193 160 Average 454 | 2 43 103 219 . 7 53 136 342 698 725 571 271 235 266 Maximum Alert Level 3 | . . 1 1 . . . 2 2 3 3 3 1 1 1 Low Security (%) 27 | 100 100 93 24 . 100 100 84 . . . . . 13 36 Level 1 18 | . . 6 75 . . . . 81 4 7 3 100 86 63 Level 2 25 | . . . . . . . 15 18 37 39 70 . . . Level 3 27 | . . . . . . . . . 57 52 25 . . . Level 4 . | . . . . . . . . . . . . . . . Level 5 . | . . . . . . . . . . . . . . . High Security . | . . . . . . . . . . . . . . . Max Security . | . . . . . . . . . . . . . . . Squads Dispatched 34 | . 1 3 . . . . 1 4 . 16 4 . 3 2 Investigation 4 | . 1 . . . . . . . . 3 . . . . Extermination 6 | . . . . . . . 1 1 . 4 . . . . Reinforcement 14 | . . 3 . . . . . . . 5 2 . 3 1 Assault 4 | . . . . . . . . 1 . 1 2 . . . Garrison 6 | . . . . . . . . 2 . 3 . . . 1 Intercept . | . . . . . . . . . . . . . . . Construction Impeded 5 | . . . . . . . . . . 2 2 . . 1 Haulers Reinforced 1 | . . . . . . . . . . 1 . . . . Stealth | -11 -10 -9 -9 -9 -8 -8 -7 -6 -6 -6 -5 -5 -5 -4 --------- Run | Scr Mat Mat Min Exi Min Mat Fac Fac Gar Fac Fac Was Fac Fac Distress Signals 9 | . . 4 . . . . . 2 . . 2 . . 1 Communications Jammed . | . . . . . . . . . . . . . . . Distress Signals . | . . . . . . . . . . . . . . . Times Spotted 201 | . 7 30 9 . 3 2 3 14 30 53 16 6 11 17 Peak Tracking Total 11 | . 5 11 3 . 1 2 4 5 9 5 10 6 5 8 Tactical Retreats 26 | . 3 4 1 . . . . 1 5 6 2 . 1 3 Traps | -11 -10 -9 -9 -9 -8 -8 -7 -6 -6 -6 -5 -5 -5 -4 ------- Run | Scr Mat Mat Min Exi Min Mat Fac Fac Gar Fac Fac Was Fac Fac Traps Triggered 5 | . . . . . . . 1 . . 2 2 . . . Indirectly 2 | . . . . . . . . . . 2 . . . . Trap Hack Attempts . | . . . . . . . . . . . . . . . Triggered . | . . . . . . . . . . . . . . . Disarmed . | . . . . . . . . . . . . . . . Reprogrammed . | . . . . . . . . . . . . . . . Reused . | . . . . . . . . . . . . . . . Traps Reconfigurated 6 | . . . . . . . 2 . 4 . . . . . Traps Extracted . | . . . . . . . . . . . . . . . Installed . | . . . . . . . . . . . . . . . Triggered 2 | . . . . . . . . . 1 1 . . . . Machines | -11 -10 -9 -9 -9 -8 -8 -7 -6 -6 -6 -5 -5 -5 -4 ---------- Run | Scr Mat Mat Min Exi Min Mat Fac Fac Gar Fac Fac Was Fac Fac Machines Disabled 65 | . 1 1 2 . . 1 22 3 2 15 15 . . 3 Max in Single Turn 20 | . 1 1 2 . . 1 20 1 1 2 9 . . 3 Garrison Relay 2 | . . . . . . . . . 2 . . . . . Machines Sabotaged . | . . . . . . . . . . . . . . . Garrisons Compromised . | . . . . . . . . . . . . . . . Overloaded Fab Kills . | . . . . . . . . . . . . . . . Fab Network Shutdowns . | . . . . . . . . . . . . . . . Hacking | -11 -10 -9 -9 -9 -8 -8 -7 -6 -6 -6 -5 -5 -5 -4 --------- Run | Scr Mat Mat Min Exi Min Mat Fac Fac Gar Fac Fac Was Fac Fac Machines Accessed 38 | . 3 2 . 5 . 2 1 5 . 11 4 . 4 1 Terminals 16 | . 2 1 . . . 2 1 1 . 5 2 . 2 . Fabricators 3 | . . . . . . . . . . 2 1 . . . Repair Stations 1 | . 1 . . . . . . . . . . . . . Recycling Units 7 | . . 1 . . . . . 1 . 3 . . 2 . Scanalyzers 2 | . . . . . . . . 1 . . 1 . . . Garrison Access 4 | . . . . . . . . 2 . 1 . . . 1 Total Hacks 111 | . 8 4 . 50 . 6 3 7 . 19 6 . 7 1 Successful 72 | . 4 1 . 50 . 3 2 2 . 6 1 . 3 . Failed 39 | . 4 3 . . . 3 1 5 . 13 5 . 4 1 Catastrophic 12 | . 1 2 . . . . . 1 . 5 2 . 1 . Database Lockouts . | . . . . . . . . . . . . . . . Manual 41 | . 4 3 . 2 . 4 2 4 . 12 6 . 3 1 Terminals 32 | . 4 3 . . . 6 3 1 . 8 4 . 3 . Fabricators 5 | . . . . . . . . . . 4 1 . . . Repair Stations 4 | . 4 . . . . . . . . . . . . . Recycling Units 12 | . . 1 . . . . . 2 . 5 . . 4 . Scanalyzers 3 | . . . . . . . . 2 . . 1 . . . Garrison Access 5 | . . . . . . . . 2 . 2 . . . 1 Terminal Hacks 57 | . 1 . . 50 . 3 2 . . 1 . . . . Record 50 | . . . . 49 . . 1 . . . . . . . Robot Analysis 1 | . . . . . . 1 . . . . . . . . Level Access Points 4 | . 1 . . . . 1 1 . . 1 . . . . Branch Access Points 1 | . . . . . . 1 . . . . . . . . EX-Prototype ID Bank 1 | . . . . 1 . . . . . . . . . . Fabricator Hacks 3 | . . . . . . . . . . 2 1 . . . Network Status 3 | . . . . . . . . . . 2 1 . . . Repair Station Hacks 3 | . 3 . . . . . . . . . . . . . Scan Component 2 | . 2 . . . . . . . . . . . . . Repair 1 | . 1 . . . . . . . . . . . . . Recycling Unit Hacks 8 | . . 1 . . . . . 1 . 3 . . 3 . Process 1 | . . . . . . . . . . . . . 1 . Report Inventory 6 | . . 1 . . . . . 1 . 3 . . 1 . Retrieve Matter 1 | . . . . . . . . . . . . . 1 . Scanalyzer . | . . . . . . . . . . . . . . . Garrison Access Hacks 1 | . . . . . . . . 1 . . . . . . Unlock Access 1 | . . . . . . . . 1 . . . . . . Unauthorized Hacks . | . . . . . . . . . . . . . . . Terminals . | . . . . . . . . . . . . . . . Fabricators . | . . . . . . . . . . . . . . . Repair Stations . | . . . . . . . . . . . . . . . Recycling Units . | . . . . . . . . . . . . . . . Scanalyzers . | . . . . . . . . . . . . . . . Garrison Access . | . . . . . . . . . . . . . . . Data Cores Recovered 1 | . . . . . . . . 1 . . . . . . Used 1 | . . . . . . . . 1 . . . . . . Hacking Detections 26 | . 1 1 . . . 1 1 5 . 8 4 . 4 1 Full Trace Events 3 | . 1 . . . . . . . . 2 . . . . Feedback Events 1 | . . . . . . . . . . 1 . . . . Corruption 1 | . . . . . . . . . . 1 . . . . Feedback Blocked . | . . . . . . . . . . . . . . . Robot Schematics Acquired . | . . . . . . . . . . . . . . . Robots Built . | . . . . . . . . . . . . . . . Matter . | . . . . . . . . . . . . . . . Time . | . . . . . . . . . . . . . . . Total Robot Build Rating . | . . . . . . . . . . . . . . . Part Schematics Acquired . | . . . . . . . . . . . . . . . Parts Built . | . . . . . . . . . . . . . . . Matter . | . . . . . . . . . . . . . . . Time . | . . . . . . . . . . . . . . . Total Part Build Rating . | . . . . . . . . . . . . . . . Parts Repaired 1 | . 1 . . . . . . . . . . . . . Time 26 | . 26 . . . . . . . . . . . . . Parts Recycled . | . . . . . . . . . . . . . . . Recycled Matter 50 | . . . . . . . . . . . . . 50 . Retrieved Matter 50 | . . . . . . . . . . . . . 50 . Retrieved Components . | . . . . . . . . . . . . . . . Parts Scanalyzed . | . . . . . . . . . . . . . . . Part Schematics Acquired . | . . . . . . . . . . . . . . . Parts Damaged . | . . . . . . . . . . . . . . . Bothacking | -11 -10 -9 -9 -9 -8 -8 -7 -6 -6 -6 -5 -5 -5 -4 ------------ Run | Scr Mat Mat Min Exi Min Mat Fac Fac Gar Fac Fac Was Fac Fac Used RIF Installer 1 | . . . . . . . . . 1 . . . . . Robots Hacked . | . . . . . . . . . . . . . . . Non-combat . | . . . . . . . . . . . . . . . Combat . | . . . . . . . . . . . . . . . Robot Hacks Applied . | . . . . . . . . . . . . . . . Relay Couplers Released 6 | . . . . . . . . . 6 . . . . . Machine Destruction 6 | . . . . . . . . . 6 . . . . . Robots Rewired 1 | . . . . . . . . . 1 . . . . . Allies Hacked . | . . . . . . . . . . . . . . . Hacks Repelled . | . . . . . . . . . . . . . . . Allies | -11 -10 -9 -9 -9 -8 -8 -7 -6 -6 -6 -5 -5 -5 -4 -------- Run | Scr Mat Mat Min Exi Min Mat Fac Fac Gar Fac Fac Was Fac Fac Total Allies 2 | . . . 1 . . . . . 1 . . . . . Largest Group 1 | . . . 1 . . . . . 1 1 . . . . Highest-Rated Group 32 | . . . 31 . . . . . 32 32 . . . . Highest-Rated Ally 32 | . . . 31 . . . . . 32 32 . . . . Total Orders . | . . . . . . . . . . . . . . . Ally Attacks 14 | . . . 7 . . . . . . 7 . . . . Total Damage 376 | . . . 144 . . . . . . 232 . . . . Kills 6 | . . . 3 . . . . . . 3 . . . . Allies Corrupted . | . . . . . . . . . . . . . . . Allies Melted . | . . . . . . . . . . . . . . . Intel | -11 -10 -9 -9 -9 -8 -8 -7 -6 -6 -6 -5 -5 -5 -4 ------- Run | Scr Mat Mat Min Exi Min Mat Fac Fac Gar Fac Fac Was Fac Fac Robot Analysis Total 1 | . . . . . . 1 . . . . . . . . Derelict Logs Recovered 1 | . . . 1 . . . . . . . . . . . Drone Launches . | . . . . . . . . . . . . . . . Drone Recoveries . | . . . . . . . . . . . . . . . Exploration | -11 -10 -9 -9 -9 -8 -8 -7 -6 -6 -6 -5 -5 -5 -4 ------------- Run | Scr Mat Mat Min Exi Min Mat Fac Fac Gar Fac Fac Was Fac Fac Turns Passed 8128 | 87 374 316 239 407 452 379 374 416 768 2868 640 138 254 416 Spaces Moved 5135 | 50 184 308 210 279 236 290 222 190 377 1479 373 216 351 370 Core 275 | 7 . 1 . . . . . . . . 9 . 5 253 Treads 3094 | 43 184 111 . . . 89 222 190 377 1479 282 . 6 111 Legs . | . . . . . . . . . . . . . . . Wheels . | . . . . . . . . . . . . . . . Hover . | . . . . . . . . . . . . . . . Flight 1766 | . . 196 210 279 236 201 . . . . 82 216 340 6 Fastest Speed 29 | 50 160 35 105 34 184 103 157 157 155 155 32 34 29 40 Average Speed 130 | 144 160 82 109 143 188 121 157 157 157 158 144 34 41 84 Slowest Speed 650 | 160 160 160 175 184 315 190 157 158 158 180 650 34 200 170 Overloaded Moves . | . . . . . . . . . . . . . . . Propulsion Burnouts . | . . . . . . . . . . . . . . . Robots Hopped 6 | . . 5 . . . . . . . . . . 1 . Cave-ins Triggered 1 | . . . . . . . . . . . . . . 1 Exploration Rate (%) 33 | 4 35 31 41 62 67 32 11 10 48 40 16 77 13 9 Regions Visited 14 Branch Regions 3 Pre-discovered Areas 2 | . . . 1 1 . . . . . . . . . . Known Exits Taken 5 | . 1 . . . . 1 1 1 . 1 . . . . Unknown Exits Taken 6 | 1 . 1 1 1 1 . . . . . . . 1 . Scrap Searched 2 | . . . 1 . 1 . . . . . . . . . Spaces Dug 14 | . . . . . . . . . . 14 . . . . Terrain Destroyed 561 | . . 2 38 . 30 25 62 95 4 110 165 . . 30 Melee . | . . . . . . . . . . . . . . . Projectile 55 | . . . . . 5 9 7 15 1 13 . . . 5 AOE 506 | . . 2 38 . 25 16 55 80 3 97 165 . . 25 Terrain Rammed . | . . . . . . . . . . . . . . . Walls Destroyed . | . . . . . . . . . . . . . . . Machines Disabled . | . . . . . . . . . . . . . . . Actions | -11 -10 -9 -9 -9 -8 -8 -7 -6 -6 -6 -5 -5 -5 -4 --------- Run | Scr Mat Mat Min Exi Min Mat Fac Fac Gar Fac Fac Was Fac Fac Total 6052 | 58 231 338 216 284 240 317 248 279 503 1791 433 279 412 423 Wait 462 | . 25 20 . . . . 9 62 75 166 14 64 21 6 Move 5111 | 49 183 298 209 278 235 289 221 190 376 1478 373 215 348 369 Hop 5 | . . 4 . . . . . . . . . . 1 . Pick Up 60 | 1 2 1 2 1 2 15 7 2 3 14 7 . 1 2 Fast Attach 66 | 6 3 3 1 3 1 3 2 2 1 16 . . 15 10 Attach 42 | . . 1 2 . . 2 2 3 4 12 10 . 1 5 Detach 12 | . 1 . . . . 4 . 1 . 2 2 . 1 1 Swap 9 | . . 2 . . . 2 . . 4 1 . . . . Drop 36 | . 1 1 . 2 . 2 6 . 4 10 7 . 1 2 Fire 204 | 2 16 8 2 . 2 . 1 19 31 91 20 . . 12 Melee 38 | . . . . . . . . . . . . . 23 15 Ram . | . . . . . . . . . . . . . . . Kick . | . . . . . . . . . . . . . . . Crush 1 | . . . . . . . . . . 1 . . . . Escape Stasis 1 | . . . . . . . . . . . . . . 1 Rewire 5 | . . . . . . . . . 5 . . . . . Trap . | . . . . . . . . . . . . . . . Miscellaneous . | . . . . . . . . . . . . . . . Route ------- -11/Scrapyard -10/Materials (discovered 3 exits: *Mat x3) -9/Materials -9/Mines (discovered 2 exits: *Exi / [*Zio]) -9/Exiles -8/Mines -8/Materials (discovered 3 exits: *Fac x3) -7/Factory (discovered 4 exits: *Fac x4) -6/Factory -6/Garrison -6/Factory (discovered 4 exits: *Fac x4) -5/Factory -5/Waste -5/Factory -4/Factory History --------- Turn | Location | Event 3 | -11/Scrapyard | Discovered new exit (range 15) 88 | -11/Scrapyard | Entered Materials 317 | -10/Materials | Build established: Mutant 366 | -10/Materials | Repaired Med. Laser 398 | -10/Materials | Identified exit to Materials 462 | -10/Materials | Entered another Materials area 462 | -9/Materials | Evolved 2 slots: Weapon x2 726 | -9/Materials | Lost 7 parts (1p2n4w) 761 | -9/Materials | Discovered new exit (range 16) 778 | -9/Materials | Entered Mines 783 | -9/Mines | Core integrity fell below 50% 884 | -9/Mines | Received a Mining Laser from a helpful Derelict 953 | -9/Mines | A Derelict revealed a hidden shortcut to a safe place 966 | -9/Mines | Learned location of Storage (-9) 1011 | -9/Mines | Deemed a non-threat by the Exiles lab entrance 1012 | -9/Mines | Discovered new exit (range 5) 1017 | -9/Mines | Entered Exiles 1048 | -9/Exiles | Met 8R-AWN 1065 | -9/Exiles | Met EX-HEX 1112 | -9/Exiles | Met EX-BIN 1132 | -9/Exiles | Aligned with FarCom system 1133 | -9/Exiles | Given EX-Vault access code 1159 | -9/Exiles | Opened EX-Vault 1165 | -9/Exiles | Found Prototype Storage 1165 | -9/Exiles | Identified Lightpack 2.0 1169 | -9/Exiles | Found Prototype Device 1172 | -9/Exiles | Found Prototype Ballistic Gun 1172 | -9/Exiles | Identified AWS/Gauss 1201 | -9/Exiles | Identified Trap Reconfigurator 1271 | -9/Exiles | Warned to stay clear of 0b10 Research branches 1328 | -9/Exiles | Met EX-DEC 1343 | -9/Exiles | Learned location of Zion (-7) 1404 | -9/Exiles | Discovered new exit (range 14) 1424 | -9/Exiles | Stole three prototypes: Lightpack 2.0, Trap Reconfigurator, AWS/Gauss 1424 | -9/Exiles | Entered Mines 1858 | -8/Mines | Discovered new exit (range 12) 1876 | -8/Mines | Entered Materials 1876 | -8/Materials | Evolved 2 slots: Propulsion x2 1898 | -8/Materials | Build established: Hauler-Skirmisher 2118 | -8/Materials | Identified exit to Factory 2255 | -8/Materials | Entered Factory 2255 | -7/Factory | Evolved 2 slots: Utility x2 2257 | -7/Factory | FarCom data flow suspended 2544 | -7/Factory | Identified exit to Factory 2629 | -7/Factory | Entered another Factory area 2629 | -6/Factory | Evolved 2 slots: Utility x2 2743 | -6/Factory | Garrison activated, responded to threat 2960 | -6/Factory | Garrison activated, responded to threat 2979 | -6/Factory | First assault squad dispatched 3041 | -6/Factory | Destroyed 8 combat bots 3045 | -6/Factory | Identified exit to Garrison 3045 | -6/Factory | Entered Garrison 3053 | -6/Garrison | Installed Relay Interface Framework 3077 | -6/Garrison | Triggered checkpoint 3190 | -6/Garrison | Triggered checkpoint 3214 | -6/Garrison | Garrison Relay disabled 3360 | -6/Garrison | Triggered checkpoint 3376 | -6/Garrison | Triggered checkpoint 3397 | -6/Garrison | Triggered checkpoint 3398 | -6/Garrison | Destroyed 10 combat bots 3448 | -6/Garrison | Triggered checkpoint 3674 | -6/Garrison | Triggered checkpoint 3735 | -6/Garrison | Garrison Relay disabled 3788 | -6/Garrison | Discovered new exit (range 13) 3813 | -6/Garrison | Entered Factory 3813 | -6/Factory | Accompanied by 1 ally 4028 | -6/Factory | Build established: Hauler-Mutant 4381 | -6/Factory | Build established: Hauler-Skirmisher 5317 | -6/Factory | Identified exit to Factory 5539 | -6/Factory | Garrison activated, responded to threat 5563 | -6/Factory | First assault squad dispatched 5575 | -6/Factory | Lost 3 parts (1n1u1w) 6281 | -6/Factory | Spotted B-75 Beast 6323 | -6/Factory | Lost 3 parts (1n1u1w) 6681 | -6/Factory | Entered another Factory area 6681 | -5/Factory | Evolved 2 slots: Power x1, Utility x1 6951 | -5/Factory | Build established: Scavenger-Skirmisher 7145 | -5/Factory | Spotted B-75 Beast 7226 | -5/Factory | Destroyed B-75 Beast 7243 | -5/Factory | Lost 6 parts (1p1n3u1w) 7281 | -5/Factory | First assault squad dispatched 7321 | -5/Factory | Sucked down chute 7321 | -5/Factory | Entered Waste 7330 | -5/Waste | Lost 7 parts (1p2n1u3w) 7333 | -5/Waste | Spotted C-40 Crusher 7336 | -5/Waste | Spotted C-40 Crusher 7361 | -5/Waste | Spotted C-40 Crusher 7398 | -5/Waste | Spotted C-40 Crusher 7398 | -5/Waste | Spotted C-40 Crusher 7447 | -5/Waste | Spotted C-40 Crusher 7451 | -5/Waste | Discovered new exit (range 16) 7459 | -5/Waste | Entered Factory 7587 | -5/Factory | Build established: Mutant 7587 | -5/Factory | Core integrity fell below 50% 7606 | -5/Factory | Core integrity fell below 20% 7627 | -5/Factory | Lost 8 parts (1p4n1u2w) 7691 | -5/Factory | Discovered new exit (range 7) 7713 | -5/Factory | Entered another Factory area 7713 | -4/Factory | Evolved 2 slots: Utility x2 7857 | -4/Factory | Garrison activated, responded to threat 7911 | -4/Factory | Found Quantum Capacitor 7970 | -4/Factory | Released all parts (9) 7978 | -4/Factory | Crushed by falling debris 8009 | -4/Factory | Lost 8 parts (1p3n2u2w) 8051 | -4/Factory | Core integrity fell below 50% 8064 | -4/Factory | Core integrity fell below 20% 8129 | -4/Factory | Destroyed by S-27 Virus with Autogun Last Messages --------------- 07979_ Penetrated by Slug. 07990_ Slug penetrates Wall. 08050_ Penetrated by Slug. 08054_ Slug penetrates Nuclear Reactor. 08054_ Penetrated by Slug. 08055_ H-77 Assassin suffers critical hit. 08055_ Destroyed Coil Gun. 08057_ Penetrated by Slug. 08063_ Chainsword destroyed. 08063_ Drone sends a signal. 08064_ Nuclear Reactor explodes. 08066_ Katana destroyed. 08066_ Penetrated by Slug. 08069_ The unstable cave ceiling collapses. 08069_ Penetrated by Slug. 08074_ U-05 Engineer builds a Door. 08090_ U-05 Engineer lays Concrete. 08101_ Acquired Imp. Maneuvering Thrusters. 08126_ Imp. Maneuvering Thrusters destroyed. [Achievement: Achiever] Map ----- +----------------------------------------------------+ | # # #???## | | # # #?? | | # + #?? | | # # ^ #?# | | # # #?# | | # # #?# | | # #######+## #?# | | # # #### ###?# | | # # #??# #???# | | ##########/## #??# ##### | | # ## ## #??# # # | | # """ ## ####+######## # # | | # """ ## #??# # " | | # """ ## #??# ######## | | # ## #### | | # """ # | | # """ + " | | # """ # " ! | | # ###/###+#### " | | # """ ## # | | # """ ## """ # | | # """ ## "R ################## | | # ## """h"" #?????###########? | | # """ ## """ "" #????????????????? | | # """ ## """ #????????######### | | # """ ## @ """ #????????# | | # ## """ #????????# | | ########## #????????# | | ?????????# "" "" #????????# | | ?????????# "" "" #????????# | | ?????????# """s""" #????????# | | ?????????# """ """ #????????# | | ?????????# """ """ #????????# %! | | ?????????# #????????# % = | | ?????????# !#????????#####+### | | ?????????###########????????# =[ | | ?????????????#########??????# # | | ?????????????# """ #####??# # | | ?????????????# """ # % ###### | | ?????????????# """ + ! % | | ?????????????# # ############ | | ?????????????#= ## ##??????????? | | ????????????###########+##??????????? | | ????????????#= #??????????? | | ????????????# #??????????? | | ????????????# ! %=#??????????? | | ????????????# #??????????? | | ????????????# #??????????? | | ????????????# #??????????? | | ????????????# #??????????? | +----------------------------------------------------+ Best States ------------- Heat Dissipation 62 Energy Generation 31 Energy Capacity 850 Matter Stores 300 Matter Capacity 300 Sight Range 16 Robot Scan Range 16 Terrain Scan Range 20 Terrain Scan Density 10 ECM Strength 1 Power Amplification 20 Corruption Prevention 12 Armor Coverage 225 Resistance: TH 15 Evasion (%) 63 Recoil Reduction 4 Matter Filtering 30 Energy Filtering 30 Offensive Hacking 14 Item Schematics ----------------- None Robot Schematics ------------------ None Fabricated ------------ Nothing Alien Tech Used ----------------- None Achievements -------------- Achiever Close Call It Was An Accident, I Swear Challenges ------------ None Game ------ Seed AerolevPortableClaw Manual? 0 Play Time 01:26:41 Cumulative 22.9 hours Start 2020.09.28 @ 18:43:48 End 2020.09.28 @ 20:10:25 Sessions 1 Manual Loads 0 Difficulty Rogue Special Mode None Game No. 43 Rogue 43 Adventurer 0 Explorer 0 Win Type - Total 0 Types 0/0/0/0/0/0/0/0/0 Lore% 21 Gallery% 37 Achievement% 25 Wizard Run 0 Options --------- ASCII 0 Keyboard 1 Movement Numpad Keybinds 0 Fullscreen 1 Font 18/SmallcapsGlow Map View 76x50 Tactical HUD 1 Map Filters NONE Filters NONE Steam 1 RUN: c260e873-5c7b-4bba-bfff-a3d976c04842